fUST/lending_fUST_20250723
["ID","MTS","AMOUNT","RATE_DAILY","PERIOD"]
[374300393,1753269060398,-460.0,0.00023287,2]
[374300394,1753269060408,-460.0,0.00023287,2]
[374300395,1753269060421,-495.54,0.00023287,2]
[374300396,1753269060430,-1143.97,0.00023287,2]
[374300397,1753269060440,-2988.91,0.00023287,2]
[374300398,1753269060450,-616.65,0.00023287,2]
[374300399,1753269060461,-2890.28,0.00023287,2]
[374300400,1753269060471,-663.1,0.00023287,2]
[374300401,1753269060480,-2258.56,0.00023287,2]
[374300402,1753269060492,-1622.8,0.00023287,2]
[374300403,1753269060502,-1881.89,0.00023287,2]
[374300404,1753269060511,-945.69,0.00023287,2]
[374300405,1753269060522,-460.0,0.00023287,2]
[374300406,1753269060532,-547.12,0.00023287,2]
[374300407,1753269060543,-460.0,0.00023287,2]
[374300408,1753269060559,-5327.27,0.00023287,2]
[374300409,1753269060569,-460.0,0.00023287,2]
[374300410,1753269060580,-460.0,0.00023287,2]
[374300411,1753269060589,-460.0,0.00023287,2]
[374300412,1753269060599,-2413.69,0.00023287,2]
[374300413,1753269060610,-460.0,0.00023287,2]
[374300414,1753269060620,-952.12,0.00023287,2]
[374300415,1753269060630,-1314.48,0.00023287,2]
[374300416,1753269060641,-460.0,0.00023287,2]
[374300417,1753269060651,-576.26,0.00023287,2]
[374300418,1753269060662,-1383.49,0.00023287,2]
[374300419,1753269060673,-1959.77,0.00023287,2]
[374300420,1753269060683,-601.74,0.00023287,2]
[374300421,1753269060693,-348.21195986,0.00023288,2]
[374300422,1753269060703,-613.0,0.00023288,2]
[374300423,1753269060713,-3683.24,0.000233,7]
[374300424,1753269060724,-1090.3,0.00023314,3]
[374300425,1753269060734,-4562.10200011,0.00023345,2]
[374300426,1753269060744,-660.0,0.00023362,2]
[374300427,1753269060754,-169.8159976,0.00023397,2]
[374300428,1753269060764,-501.04993887,0.00023411,2]
[374300429,1753269060774,-1090.3,0.00023414,3]
[374300430,1753269060785,-170.221525,0.0002347,3]
[374300431,1753269060806,-170.221525,0.0002347,3]
[374300432,1753269060824,-1090.3,0.00023514,5]
[374300433,1753269060834,-3452.35012833,0.00023516,2]
[374300434,1753269060845,-168.0,0.00023533,2]
[374300435,1753269060855,-151.0,0.00023561,7]
[374300436,1753269060864,-151.0,0.00023561,7]
[374300437,1753269060874,-151.0,0.00023561,7]
[374300438,1753269060884,-196.46677,0.00023561,7]
[374300439,1753269060894,-196.46677,0.00023561,7]
[374300440,1753269060904,-272.47,0.00023561,2]
[374300441,1753269060914,-272.47,0.00023561,2]
[374300442,1753269060923,-272.47,0.00023561,2]
[374300443,1753269060933,-272.47,0.00023561,2]
[374300444,1753269060943,-272.47,0.00023561,2]
[374300445,1753269060953,-272.47,0.00023561,2]
[374300446,1753269060963,-272.47,0.00023561,2]
[374300447,1753269060973,-272.47,0.00023561,2]
[374300448,1753269060982,-272.47,0.00023561,2]
[374300449,1753269060992,-272.47,0.00023561,2]
[374300450,1753269061002,-272.47,0.00023561,2]
[374300451,1753269061012,-272.47,0.00023561,2]
[374300452,1753269061022,-272.47,0.00023561,2]
[374300453,1753269061032,-272.47,0.00023561,2]
[374300454,1753269061043,-272.47,0.00023561,2]
[374300455,1753269061052,-272.47,0.00023561,2]
[374300456,1753269061062,-272.47,0.00023561,2]
[374300457,1753269061071,-155.92523,0.00023561,7]
[374300458,1753269061081,-155.92523,0.00023561,7]
[374300459,1753269061091,-422.03848728,0.00023561,2]
[374300460,1753269061101,-537.57,0.00023561,2]
[374300461,1753269061111,-1662.56,0.00023561,2]
[374300462,1753269061121,-510.42,0.00023561,2]
[374300463,1753269061131,-460.0,0.00023561,2]
[374300464,1753269061142,-489.06,0.00023561,2]
[374300465,1753269061152,-1972.41,0.00023561,2]
[374300466,1753269061162,-598.47,0.00023561,2]
[374300467,1753269061171,-460.0,0.00023561,2]
[374300468,1753269061182,-460.0,0.00023561,2]
[374300469,1753269061195,-550.8,0.00023561,2]
[374300470,1753269061205,-9286.51,0.00023561,2]
[374300471,1753269061215,-633.27,0.00023561,2]
[374300472,1753269061227,-3142.68,0.00023561,2]
[374300473,1753269061238,-534.22,0.00023561,2]
[374300474,1753269061248,-460.0,0.00023561,2]
[374300475,1753269061258,-495.54,0.00023561,2]
[374300476,1753269061268,-1143.97,0.00023561,2]
[374300477,1753269061278,-2988.91,0.00023561,2]
[374300478,1753269061288,-616.65,0.00023561,2]
[374300479,1753269061299,-2890.28,0.00023561,2]
[374300480,1753269061309,-663.1,0.00023561,2]
[374300481,1753269061319,-2258.56,0.00023561,2]
[374300482,1753269061329,-1622.8,0.00023561,2]
[374300483,1753269061338,-1881.89,0.00023561,2]
[374300484,1753269061349,-945.69,0.00023561,2]
[374300485,1753269061359,-460.0,0.00023561,2]
[374300486,1753269061368,-547.12,0.00023561,2]
[374300487,1753269061378,-460.0,0.00023561,2]
[374300488,1753269061388,-5327.27,0.00023561,2]
[374300489,1753269061398,-601.84014163,0.00023561,2]
[374300490,1753269061409,-460.0,0.00023561,2]
[374300491,1753269061422,-460.0,0.00023561,2]
[374300492,1753269061431,-2413.69,0.00023561,2]
[374300493,1753269061441,-460.0,0.00023561,2]
[374300494,1753269061451,-952.12,0.00023561,2]
[374300495,1753269061460,-1314.48,0.00023561,2]
[374300496,1753269061471,-460.0,0.00023561,2]
[374300497,1753269061594,-576.26,0.00023561,2]
[374300498,1753269061604,-1383.49,0.00023561,2]
[374300499,1753269061615,-1959.77,0.00023561,2]
[374300500,1753269061626,-613.0,0.00023562,2]
[374300501,1753269061637,-1090.3,0.00023614,7]
[374300502,1753269061647,-160.0,0.00023617,4]
[374300503,1753269061658,-151.0,0.00023617,2]
[374300504,1753269061669,-25000.0,0.00023617,2]
[374300505,1753269061679,-170.221525,0.00023651,2]
[374300506,1753269061689,-1090.3,0.00023714,2]
[374300507,1753269061699,-169.8159976,0.00023726,2]
[374300508,1753269061710,-4562.10200011,0.00023728,2]
[374300509,1753269061720,-1000.0,0.0002375,5]
[374300510,1753269061730,-648.0,0.00023763,2]
[374300511,1753269061740,-2157.0,0.00023763,2]
[374300512,1753269061751,-153.0,0.00023781,2]
[374300513,1753269061761,-1403.62,0.00023786,2]
[374300514,1753269061771,-151.38220193,0.00023788,2]
[374300515,1753269061782,-1090.3,0.00023814,7]
[374300516,1753269061793,-3452.35012833,0.00023823,2]
[374300517,1753269061803,-160.31443999,0.00023834,2]
[374300518,1753269061813,-272.47,0.00023835,2]
[374300519,1753269061823,-537.57,0.00023835,2]
[374300520,1753269061833,-1662.56,0.00023835,2]
[374300521,1753269061843,-510.42,0.00023835,2]
[374300522,1753269061853,-460.0,0.00023835,2]
[374300523,1753269061864,-489.06,0.00023835,2]
[374300524,1753269061873,-1972.41,0.00023835,2]
[374300525,1753269061883,-460.0,0.00023835,2]
[374300526,1753269061894,-460.0,0.00023835,2]
[374300527,1753269061904,-550.8,0.00023835,2]
[374300528,1753269061914,-9286.51,0.00023835,2]
[374300529,1753269061933,-633.27,0.00023835,2]
[374300530,1753269061946,-3142.68,0.00023835,2]
[374300531,1753269061957,-460.0,0.00023835,2]
[374300532,1753269061967,-495.54,0.00023835,2]
[374300533,1753269061976,-1143.97,0.00023835,2]
[374300534,1753269061986,-2988.91,0.00023835,2]
[374300535,1753269061996,-616.65,0.00023835,2]
[374300536,1753269062006,-2890.28,0.00023835,2]
[374300537,1753269062016,-663.1,0.00023835,2]
[374300538,1753269062038,-2258.56,0.00023835,2]
[374300539,1753269062048,-1622.8,0.00023835,2]
[374300540,1753269062062,-1881.89,0.00023835,2]
[374300541,1753269062088,-945.69,0.00023835,2]
[374300542,1753269062101,-460.0,0.00023835,2]
[374300543,1753269062114,-547.12,0.00023835,2]
[374300544,1753269062126,-460.0,0.00023835,2]
[374300545,1753269062137,-5327.27,0.00023835,2]
[374300546,1753269062147,-460.0,0.00023835,2]
[374300547,1753269062158,-460.0,0.00023835,2]
[374300548,1753269062169,-2413.69,0.00023835,2]
[374300549,1753269062181,-460.0,0.00023835,2]
[374300550,1753269062192,-952.12,0.00023835,2]
[374300551,1753269062203,-1314.48,0.00023835,2]
[374300552,1753269062214,-297.78433573,0.00023835,2]
[374300553,1753269062227,-576.26,0.00023835,2]
[374300554,1753269062238,-1383.49,0.00023835,2]
[374300555,1753269062248,-1959.77,0.00023835,2]
[374300556,1753269062259,-613.0,0.00023836,2]
[374300557,1753269062269,-12500.0,0.00023836,7]
[374300558,1753269062279,-969.0,0.00023839,2]
[374300559,1753269062290,-407.0,0.00023839,2]
[374300560,1753269062300,-420.288,0.00023839,2]
[374300561,1753269062311,-168.0,0.00023872,2]
[374300562,1753269062322,-1159.08615836,0.000239,2]
[374300563,1753269062332,-760.0,0.0002391,2]
[374300564,1753269062343,-1090.3,0.00023914,7]
[374300565,1753269062354,-800.0,0.00023928,2]
[374300566,1753269062364,-3452.35012833,0.00023956,2]
[374300567,1753269062374,-160.0,0.00024,7]
[374300568,1753269062385,-160.0,0.00024,10]
[374300569,1753269062395,-160.0,0.00024,7]
[374300570,1753269062405,-160.0,0.00024,10]
[374300571,1753269062418,-96558.61610306,0.00024,60]
[374300572,1753269062428,-160.0,0.00024,7]
[374300573,1753269062438,-526.15909479,0.00024,7]
[374300574,1753269062449,-160.0,0.00024,7]
[374300575,1753269062459,-215.84326551,0.00024,7]
[374300576,1753269062470,-231.11583447,0.00024,7]
[374300577,1753269062481,-170.221525,0.00024003,10]
[374300578,1753269062492,-170.221525,0.00024003,10]
[374300579,1753269062502,-1090.3,0.00024014,5]
[374300580,1753269062513,-506.80993914,0.00024027,30]
[374300581,1753269062523,-169.8159976,0.00024027,2]
[374300582,1753269062533,-700.0,0.00024036,2]
[374300583,1753269062544,-153.0,0.00024055,2]
[374300584,1753269062554,-153.0,0.00024055,2]
[374300585,1753269062565,-153.0,0.00024055,2]
[374300586,1753269062575,-153.0,0.00024055,2]
[374300587,1753269062586,-700.0,0.00024076,2]
[374300588,1753269062596,-280.033319,0.00024109,7]
[374300589,1753269062606,-280.033319,0.00024109,7]
[374300590,1753269062616,-151.0,0.00024109,7]
[374300591,1753269062626,-151.0,0.00024109,7]
[374300592,1753269062636,-151.0,0.00024109,7]
[374300593,1753269062647,-272.47,0.00024109,2]
[374300594,1753269062657,-537.57,0.00024109,2]
[374300595,1753269062667,-1662.56,0.00024109,2]
[374300596,1753269062678,-510.42,0.00024109,2]
[374300597,1753269062688,-460.0,0.00024109,2]
[374300598,1753269062703,-489.06,0.00024109,2]
[374300599,1753269062715,-1972.41,0.00024109,2]
[374300600,1753269062726,-460.0,0.00024109,2]
[374300601,1753269062736,-460.0,0.00024109,2]
[374300602,1753269062748,-550.8,0.00024109,2]
[374300603,1753269062758,-9286.51,0.00024109,2]
[374300604,1753269062769,-633.27,0.00024109,2]
[374300605,1753269062779,-3142.68,0.00024109,2]
[374300606,1753269062791,-460.0,0.00024109,2]
[374300607,1753269062801,-495.54,0.00024109,2]
[374300608,1753269062811,-1143.97,0.00024109,2]
[374300609,1753269062821,-2988.91,0.00024109,2]
[374300610,1753269062831,-616.65,0.00024109,2]
[374300611,1753269062841,-2890.28,0.00024109,2]
[374300612,1753269062851,-663.1,0.00024109,2]
[374300613,1753269062862,-2258.56,0.00024109,2]
[374300614,1753269062872,-1462.25771895,0.00024109,2]
[374300615,1753269063515,-462.60960298,0.00019178,2]
[374300616,1753269063526,-460.0,0.00022465,2]
[374300617,1753269063537,-66.94039702,0.00022739,2]
[374300618,1753269063550,-393.05960298,0.00022739,2]
[374300619,1753269063560,-460.0,0.00023013,2]
[374300620,1753269063570,-460.0,0.00023287,2]
[374300621,1753269063580,-601.74,0.00023561,2]
[374300622,1753269063591,-460.0,0.00023561,2]
[374300623,1753269063600,-601.74,0.00023835,2]
[374300624,1753269063610,-460.0,0.00023835,2]
[374300625,1753269063620,-160.54228105,0.00024109,2]
[374300626,1753269063630,-775.83517803,0.00024109,2]
[374300627,1753269063681,282.27125033,0.0001688,2]
[374300628,1753269063705,917.72874967,0.0001688,2]
[374300629,1753269063870,-1106.05482197,0.00024109,2]
[374300630,1753269063880,-945.69,0.00024109,2]
[374300631,1753269063890,-460.0,0.00024109,2]
[374300632,1753269063900,-547.12,0.00024109,2]
[374300633,1753269063911,-460.0,0.00024109,2]
[374300634,1753269063925,-2358.14799664,0.00024109,2]
[374300635,1753269064028,-1200.0,0.00017976,2]
[374300636,1753269064040,-194.80044835,0.00019178,2]
[374300637,1753269064051,-500.0,0.00019178,2]
[374300638,1753269064062,-500.0,0.00019452,2]
[374300639,1753269064072,-2969.12200336,0.00024109,2]
[374300640,1753269064083,-460.0,0.00024109,2]
[374300641,1753269064095,-460.0,0.00024109,2]
[374300642,1753269064107,-2413.69,0.00024109,2]
[374300643,1753269064118,-460.0,0.00024109,2]
[374300644,1753269064129,-952.12,0.00024109,2]
[374300645,1753269064140,-1314.48,0.00024109,2]
[374300646,1753269064151,-576.26,0.00024109,2]
[374300647,1753269064162,-1383.49,0.00024109,2]
[374300648,1753269064173,-1959.77,0.00024109,2]
[374300649,1753269064184,-601.74,0.00024109,2]
[374300650,1753269064195,-460.0,0.00024109,2]
[374300651,1753269064205,-4562.10200011,0.0002411,2]
[374300652,1753269064215,-613.0,0.0002411,2]
[374300653,1753269064226,-1090.3,0.00024114,3]
[374300654,1753269064237,-500.0,0.00024153,2]
[374300655,1753269064247,-239.0,0.00024164,7]
[374300656,1753269064259,-151.0,0.00024165,2]
[374300657,1753269064270,-14064.86338015,0.00024165,2]
[374300658,1753269064285,-10935.13661985,0.00024165,2]
[374300659,1753269064296,-700.0,0.00024173,2]
[374300660,1753269064307,-790.45113304,0.00024187,2]
[374300661,1753269084528,150.0,0.00015188,2]
[374300662,1753269084561,150.0,0.00015911,2]
[374300663,1753269084959,158.29,0.00016634,2]
[374300664,1753269181894,150.0,0.00015281,2]
[374300665,1753269182545,150.0,0.00016009,2]
[374300666,1753269182964,150.0,0.00016736,2]
[374300667,1753269193820,-187.72,0.00017464,2]
[374300668,1753269193844,-234.65,0.00018192,2]
[374300669,1753269193868,-281.58,0.00018919,2]
[374300670,1753269193890,-1200.0,0.00019072,2]
[374300671,1753269193913,-2096.05,0.00019078,2]
[374300673,1753269302577,214.67886746,0.00026,120]
[374300674,1753269432708,150.0,0.00015593,2]
[374300675,1753269433210,207.4,0.00016336,2]
[374300676,1753269496495,-311.1,0.00017078,2]
[374300677,1753269496518,-170.9,0.00017445,2]
[374300678,1753269515620,150.0,0.00015535,2]
[374300679,1753269516038,190.39,0.00016275,2]
[374300680,1753269559946,-285.58,0.00017015,2]
[374300681,1753269559972,-43.7430237,0.00017445,2]
[374300682,1753269559998,-345.6769763,0.00017754,2]
[374300684,1753269595849,150.0,0.00015496,2]
[374300685,1753269596774,165.65,0.00016234,2]
[374300686,1753269606160,483.147,0.00026027,120]
[374300688,1753269622432,615.531042,0.00013699,2]
[374300689,1753269628716,-248.48,0.00016972,2]
[374300690,1753269628740,-211.52,0.0001771,2]
[374300691,1753269675268,150.0,0.00015256,2]
[374300692,1753269675672,150.0,0.00015983,2]
[374300693,1753269676089,218.86,0.00016709,2]
[374300694,1753269695484,-260.0,0.00017436,2]
[374300695,1753269753016,150.0,0.00015236,2]
[374300696,1753269753431,150.0,0.00015962,2]
[374300697,1753269755939,189.12,0.00016687,2]
[374300698,1753269759866,-227.0,0.00017413,2]
[374300700,1753269832517,150.0,0.00015123,2]
[374300701,1753269832969,150.0,0.00015843,2]
[374300702,1753269833855,161.78,0.00016563,2]
[374300703,1753269892643,-205.0,0.00017283,2]
[374300704,1753269907080,150.0,0.00015169,2]
[374300705,1753269907614,150.0,0.00015891,2]
[374300706,1753269908060,150.0,0.00016613,2]
[374300707,1753269924265,214.67886746,0.00026,120]
[374300708,1753269935173,-189.45,0.00017336,2]
[374300709,1753269935194,-506.6072683,0.00017976,2]
[374300721,1753269982378,150.0,0.00015447,2]
[374300722,1753269983263,150.0,0.00016183,2]
[374300723,1753270015099,-150.0,0.00016918,2]
[374300724,1753270015124,-156.9,0.00017654,2]
[374300725,1753270015148,-7.6601253,0.00017976,2]
[374300727,1753270056343,150.0,0.00015413,2]
[374300728,1753270057295,150.0,0.00016147,2]
[374300729,1753270087145,-158.26,0.00016881,2]
[374300730,1753270087169,-182.74,0.00017615,2]
[374300732,1753270145334,-300.0,0.00016999,2]
[374300733,1753270145357,-83559.94900491,0.00017,2]
[374300734,1753270149106,-1718.19487353,0.00017,2]
[374300735,1753270150197,-385.7326064,0.00017976,2]
[374300736,1753270150223,-472.0,0.00018107,2]
[374300737,1753270150244,-253.0,0.00018107,2]
[374300738,1753270150267,-24900.0,0.00018108,2]
[374300739,1753270150740,172.59,0.00017876,2]
[374300799,1753270232203,-150.0,0.00018632,2]
[374300801,1753270232212,-121.41003,0.000189,2]
[374300803,1753270232224,-651.31407557,0.000189,2]
[374300805,1753270232233,-375.78745417,0.00018967,2]
[374300806,1753270232243,-981.24919536,0.00018986,2]
[374300807,1753270232252,-4150.93841753,0.00018986,2]
[374300808,1753270232269,-2873.21115997,0.00018986,2]
[374300809,1753270232279,-1185.14017204,0.00019,10]
[374300810,1753270232291,-252.7952072,0.00019067,2]
[374300811,1753270232302,-754.11,0.00019068,3]
[374300813,1753270232312,-377.06,0.00019068,3]
[374300814,1753270232322,-188.53,0.00019068,3]
[374300818,1753270232331,-565.61,0.00019068,3]
[374300821,1753270232342,-900.0,0.00019072,2]
[374300823,1753270232352,-886.33112055,0.00019072,2]
[374300825,1753270232362,-500.0,0.00019073,2]
[374300828,1753270232372,-500.0,0.00019073,2]
[374300829,1753270232383,-500.0,0.00019073,2]
[374300832,1753270232393,-411.80203562,0.00019077,2]
[374300833,1753270232402,-6624.01030462,0.00019078,2]
[374300836,1753270232414,-803.79831121,0.00019078,2]
[374300838,1753270232426,-2290.15202631,0.00019078,2]
[374301394,1753270238871,-204.63442329,0.00019077,2]
[374301396,1753270238883,-227.09883146,0.00019077,2]
[374301398,1753270238894,-19838.73056144,0.00019078,2]
[374301400,1753270238905,-8578.04858597,0.00019078,2]
[374301402,1753270238925,-329769.21021045,0.00019078,2]
[374301404,1753270238935,-264.87730644,0.00019086,6]
[374301406,1753270238945,-151.0,0.000191,2]
[374301409,1753270238956,-500.0,0.00019173,2]
[374301411,1753270238965,-467.85262096,0.00019178,2]
[374301412,1753270238975,-460.0,0.00019178,2]
[374301414,1753270238985,-463.28531478,0.00019178,2]
[374301416,1753270238995,-460.0,0.00019178,2]
[374301418,1753270239006,-218.75372422,0.00019178,2]
[374301419,1753270239016,-463.96994027,0.00019178,2]
[374301421,1753270239025,-469.32259595,0.00019178,2]
[374301423,1753270239036,-460.0,0.00019178,2]
[374301425,1753270239047,-466.44568702,0.00019178,2]
[374301427,1753270239056,-460.0,0.00019178,2]
[374301429,1753270239066,-460.0,0.00019178,2]
[374301431,1753270239076,-460.0,0.00019178,2]
[374301433,1753270239085,-460.0,0.00019178,2]
[374301435,1753270239095,-460.0,0.00019178,2]
[374301437,1753270239105,-604.3,0.00019178,2]
[374301439,1753270239115,-465.17679717,0.00019178,2]
[374301441,1753270239125,-460.0,0.00019178,2]
[374301443,1753270239134,-460.0,0.00019178,2]
[374301445,1753270239144,-460.87807703,0.00019178,2]
[374301447,1753270239153,-460.0,0.00019178,2]
[374301449,1753270239163,-460.0,0.00019178,2]
[374301451,1753270239173,-460.0,0.00019178,2]
[374301453,1753270239183,-217.80732844,0.00019178,2]
[374301455,1753270239193,-564.6643063,0.00019178,2]
[374301457,1753270239202,-460.0,0.00019178,2]
[374301458,1753270239211,-469.64618594,0.00019178,2]
[374301460,1753270239222,-460.0,0.00019178,2]
[374301462,1753270239232,-460.0,0.00019178,2]
[374301464,1753270239241,-460.0,0.00019178,2]
[374301466,1753270239251,-460.0,0.00019178,2]
[374301468,1753270239260,-460.0,0.00019178,2]
[374301470,1753270239270,-460.0,0.00019178,2]
[374301472,1753270239281,-460.0,0.00019178,2]
[374301474,1753270239290,-240.69097539,0.00019178,2]
[374301476,1753270239300,-460.0,0.00019178,2]
[374301478,1753270239310,-460.0,0.00019178,2]
[374301480,1753270239322,-460.0,0.00019178,2]
[374301482,1753270239331,-460.0,0.00019178,2]
[374301484,1753270239341,-460.0,0.00019178,2]
[374301486,1753270239351,-326.1311281,0.00019178,2]
[374301488,1753270239361,-466.75316974,0.00019178,2]
[374301490,1753270239371,-460.0,0.00019178,2]
[374301492,1753270239381,-460.0,0.00019178,2]
[374301494,1753270239391,-460.0,0.00019178,2]
[374301496,1753270239400,-460.0,0.00019178,2]
[374301498,1753270239411,-405.75432705,0.00019178,2]
[374301500,1753270239421,-460.0,0.00019178,2]
[374301502,1753270239431,-460.0,0.00019178,2]
[374301504,1753270239441,-460.0,0.00019178,2]
[374301506,1753270239451,-460.0,0.00019178,2]
[374301508,1753270239460,-460.0,0.00019178,2]
[374301510,1753270239470,-592.2528239,0.00019178,2]
[374301512,1753270239480,-460.0,0.00019178,2]
[374301514,1753270239489,-460.0,0.00019178,2]
[374301516,1753270239500,-460.0,0.00019178,2]
[374301518,1753270239510,-460.0,0.00019178,2]
[374301520,1753270239519,-460.0,0.00019178,2]
[374301522,1753270239529,-460.0,0.00019178,2]
[374301524,1753270239538,-460.0,0.00019178,2]
[374301526,1753270239547,-460.0,0.00019178,2]
[374301528,1753270239557,-460.0,0.00019178,2]
[374301530,1753270239566,-460.0,0.00019178,2]
[374301531,1753270239575,-460.0,0.00019178,2]
[374301534,1753270239586,-460.0,0.00019178,2]
[374301537,1753270239595,-462.34609583,0.00019178,2]
[374301540,1753270239606,-460.0,0.00019178,2]
[374301542,1753270239616,-460.0,0.00019178,2]
[374301544,1753270239626,-460.0,0.00019178,2]
[374301546,1753270239636,-460.0,0.00019178,2]
[374301548,1753270239646,-502.06034188,0.00019178,2]
[374301569,1753270239845,-192.40003544,0.00019178,2]
[374301571,1753270239856,-460.0,0.00019178,2]
[374301573,1753270239866,-601.52128618,0.00019178,2]
[374301575,1753270239876,-460.0,0.00019178,2]
[374301577,1753270239887,-460.0,0.00019178,2]
[374301578,1753270239896,-460.0,0.00019178,2]
[374301580,1753270239906,-460.0,0.00019178,2]
[374301582,1753270239916,-460.0,0.00019178,2]
[374301584,1753270239927,-1238.69,0.00019178,2]
[374301586,1753270239937,-169.23907157,0.00019178,2]
[374301588,1753270239946,-460.0,0.00019178,2]
[374301590,1753270239956,-573.91,0.00019178,2]
[374301591,1753270239965,-460.0,0.00019178,2]
[374301593,1753270239975,-460.0,0.00019178,2]
[374301595,1753270239984,-460.0,0.00019178,2]
[374301597,1753270239994,-672.03,0.00019178,2]
[374301598,1753270240003,-460.0,0.00019178,2]
[374301600,1753270240013,-460.0,0.00019178,2]
[374301602,1753270240024,-460.0,0.00019178,2]
[374301604,1753270240034,-460.0,0.00019178,2]
[374301606,1753270240044,-465.86880002,0.00019178,2]
[374301608,1753270240054,-460.0,0.00019178,2]
[374301610,1753270240065,-460.0,0.00019178,2]
[374301612,1753270240074,-460.0,0.00019178,2]
[374301614,1753270240085,-259.62025735,0.00019178,2]
[374301616,1753270240094,-460.0,0.00019178,2]
[374301618,1753270240104,-599.95,0.00019178,2]
[374301620,1753270240113,-649.34,0.00019178,2]
[374301622,1753270240122,-460.0,0.00019178,2]
[374301624,1753270240131,-460.0,0.00019178,2]
[374301626,1753270240141,-556.75,0.00019178,2]
[374301628,1753270240152,-460.0,0.00019178,2]
[374301630,1753270240161,-460.0,0.00019178,2]
[374301632,1753270240171,-460.0,0.00019178,2]
[374301634,1753270240181,-460.0,0.00019178,2]
[374301636,1753270240191,-460.0,0.00019178,2]
[374301638,1753270240201,-460.0,0.00019178,2]
[374301640,1753270240211,-460.0,0.00019178,2]
[374301642,1753270240221,-460.0,0.00019178,2]
[374301644,1753270240231,-460.0,0.00019178,2]
[374301646,1753270240240,-460.0,0.00019178,2]
[374301648,1753270240250,-560.49233873,0.00019178,2]
[374301650,1753270240260,-460.0,0.00019178,2]
[374301652,1753270240269,-460.0,0.00019178,2]
[374301654,1753270240279,-460.0,0.00019178,2]
[374301656,1753270240289,-460.0,0.00019178,2]
[374301658,1753270240299,-460.0,0.00019178,2]
[374301660,1753270240308,-325.2509377,0.00019178,2]
[374301662,1753270240318,-460.0,0.00019178,2]
[374301664,1753270240327,-460.0,0.00019178,2]
[374301665,1753270240337,-460.0,0.00019178,2]
[374301667,1753270240347,-350.72948266,0.00019178,2]
[374301669,1753270240356,-460.0,0.00019178,2]
[374301671,1753270240366,-460.0,0.00019178,2]
[374301673,1753270240377,-460.0,0.00019178,2]
[374301675,1753270240386,-460.0,0.00019178,2]
[374301677,1753270240395,-460.0,0.00019178,2]
[374301679,1753270240405,-460.0,0.00019178,2]
[374301681,1753270240415,-460.0,0.00019178,2]
[374301683,1753270240425,-369.58098645,0.00019178,2]
[374301685,1753270240434,-460.0,0.00019178,2]
[374301687,1753270240444,-464.86382537,0.00019178,2]
[374301689,1753270240454,-460.0,0.00019178,2]
[374301691,1753270240464,-718.71,0.00019178,2]
[374301693,1753270240474,-470.47,0.00019178,2]
[374301695,1753270240483,-460.0,0.00019178,2]
[374301697,1753270240493,-460.0,0.00019178,2]
[374301699,1753270240503,-460.0,0.00019178,2]
[374301701,1753270240514,-460.0,0.00019178,2]
[374301703,1753270240523,-7017.22,0.00019178,2]